Cogmind - Beta 15 @@@ ROGUE MODE // 2025.10.06 @ 11:16:55 Player: shapeshifter Result: Self-destructed Performance ------------- Evolutions (2) 1000 Regions Visited (3) 600 Robots Destroyed (18) 90 Value Destroyed (579) 579 Prototype IDs (1) 20 Alien Tech Used (0) 0 Bonus (0) 0 TOTAL SCORE: 2289 Bonus ------- None Cogmind --------- Core Integrity 423/550 Matter 161/300 Energy 70/100 System Corruption 0% Temperature Cool (9) Movement Rolling (110) Ox2 Location -8/Materials Parts ------- > --- POWER (1+1) ------ (None) > --- PROPULSION (3+1) - Wheel > --- UTILITY (4+1) ---- Large Storage Unit Hacking Suite Rainbow Chip > --- WEAPON (3+1) ----- Autogun Autogun > --- INVENTORY (15) --- Subdweller Power Source Light Treads Armored Treads Improved Hover Unit Improved Hover Unit Improved Hover Unit Scrap Shield Peak State ------------ > --- POWER ------------ (None) > --- PROPULSION ------- Wheel > --- UTILITY ---------- Large Storage Unit Hacking Suite Rainbow Chip > --- WEAPON ----------- Autogun Autogun > --- INVENTORY -------- Subdweller Power Source Light Treads Armored Treads Improved Hover Unit Improved Hover Unit Improved Hover Unit Scrap Shield [Rating: 23] Favorites ----------- Power Ion Engine Engine Ion Engine Propulsion Light Treads Treads Light Treads Wheel Wheel Utility Small Storage Unit Storage Small Storage Unit Processor Rainbow Chip Hackware Hacking Suite Weapon Autogun Energy Gun Small Laser Ballistic Gun Autogun Build | -11 -10 -10 -8 ------- Run | Yrd Mat Sub Mat Slots Evolved 4 | . . . 4 Power . | . . . . Propulsion 1 | . . . 1 Utility 2 | . . . 2 Weapon 1 | . . . 1 Parts Attached 18 | 6 6 4 2 Power 2 | 1 . 1 . Engine 2 | 1 . 1 . Core . | . . . . Reactor . | . . . . Propulsion 5 | 2 1 2 . Treads 3 | 2 1 . . Leg . | . . . . Wheel 2 | . . 2 . Hover . | . . . . Flight . | . . . . Utility 5 | 1 3 . 1 Device . | . . . . Storage 3 | 1 2 . . Processor 1 | . . . 1 Hackware 1 | . 1 . . Protection . | . . . . Artifact . | . . . . Weapon 6 | 2 2 1 1 Energy Gun 2 | 2 . . . Energy Cannon . | . . . . Ballistic Gun 4 | . 2 1 1 Ballistic Cannon . | . . . . Launcher . | . . . . Special Weapon . | . . . . Impact Weapon . | . . . . Slashing Weapon . | . . . . Piercing Weapon . | . . . . Special Melee Weapon . | . . . . Unidentified Prototypes 1 | . . . 1 Parts Lost 6 | . . 3 3 Power 2 | . . 1 1 Propulsion 2 | . . 1 1 Utility . | . . . . Weapon 2 | . . 1 1 Highest Loss Streak 3 | . . 3 3 To Critical Strikes . | . . . . Average Backups 7 | 3 7 7 8 Power . | . 1 . 1 Propulsion 4 | 1 4 4 4 Utility . | . . 1 1 Weapon 1 | 1 1 1 . Tool/Special . | . . . . Unused Backups 8 | . 2 . 6 Power 1 | . . . 1 Propulsion 4 | . . . 4 Utility 2 | . 1 . 1 Weapon 1 | . 1 . . Tool/Special . | . . . . Average Slot Usage (%) 89 | . 90 99 57 Engine 13 | . 14 13 7 Treads 19 | . 28 2 . Wheel 7 | . . 25 18 Storage 13 | . 14 14 9 Hackware 7 | . 5 14 9 Energy Gun 3 | . 4 . . Ballistic Gun 23 | . 23 28 14 Peak Build Rating 23 | 6 12 13 23 Average Rating 9 | 4 9 12 12 On Entrance 7 | . 6 12 13 Naked Turns . | . . . . Heaviest Build 31 | 12 31 31 31 Greatest Support 40 | 40 40 40 20 Greatest Overweight (x) 1 | . . 1 1 Average Overweight (x) . | . . . 1 Largest Inventory Capacity 15 | 8 15 15 15 Average Capacity 11 | 6 9 15 15 Most Carried 10 | 6 8 9 10 Average Carried 7 | 3 7 8 9 Final Capacity 15 | 8 15 15 15 Final Carried 9 | 4 8 9 8 Class Distribution -------------------- 100% | Mutant Dominant Class ---------------- Mutant | -10/Materials Mutant | -10/Subcaves Mutant | -8/Materials Resources | -11 -10 -10 -8 ----------- Run | Yrd Mat Sub Mat Matter Collected 703 | 189 238 222 54 Remotely . | . . . . Salvage Created 674 | . 293 272 109 Parts 52 | . 25 20 7 Haulers Intercepted . | . . . . Recyclers Shooed . | . . . . Parts Field Recycled . | . . . . Retrieved Matter . | . . . . Parts Self-Destructed . | . . . . Prevented . | . . . . Kills | -11 -10 -10 -8 ------- Run | Yrd Mat Sub Mat Combat Hostiles Destroyed 16 | . 8 6 2 Guns 16 | . 8 6 2 Classes Destroyed 5 | . 4 1 . Operator 1 | . 1 . . Watcher 1 | . 1 . . Swarmer 3 | . 3 . . Grunt 7 | . 5 . 2 Subdweller 6 | . . 6 . Best Kill Streak 5 | . 5 3 2 Combat Bots Only 5 | . 5 3 2 Max Kills in Single Turn 1 | . 1 1 1 Gunslinging . | . . . . Exploded . | . . . . Melee . | . . . . Uniques/NPCs Destroyed . | . . . . Combat | -11 -10 -10 -8 -------- Run | Yrd Mat Sub Mat Hostile Shots Fired 107 | . 48 25 34 Missed 35 | . 13 7 15 Hits 72 | . 35 18 19 Projectile 72 | . 35 18 19 AOE 3 | . . 3 . Critical Strikes 1 | . . . 1 Damage Taken 1209 | . 416 500 293 Core 309 | . 82 100 127 Absorbed by Shields . | . . . . Core Remaining (%) 63 | 100 . 27 . Volleys Fired 70 | . 35 18 17 Largest 2 | . 2 2 2 Hottest 46 | . 46 46 46 Shots Fired 123 | . 70 34 19 Gun 123 | . 70 34 19 Cannon . | . . . . Launcher . | . . . . Special . | . . . . Kinetic 123 | . 70 34 19 Thermal . | . . . . Explosive . | . . . . Electromagnetic . | . . . . Robot Hit Streak 13 | . 12 10 13 Robot Miss Streak 2 | . 2 1 2 Penetration Max . | . . . . Secondary Targets 2 | . . 2 . Max Gunslinging Chain 1 | . . 1 . Shots Hit Robots 89 | . 48 26 15 Core Hits 33 | . 16 12 5 Critical Kills . | . . . . Critical Parts Destroyed . | . . . . Critical Strikes 1 | . . 1 . Destroy 1 | . . 1 . Melee Attacks . | . . . . Impact . | . . . . Slashing . | . . . . Piercing . | . . . . Sneak Attacks . | . . . . Combat Hostiles . | . . . . Follow-up Attacks . | . . . . Damage Inflicted 1370 | . 726 406 238 Guns 1370 | . 726 406 238 Cannons . | . . . . Explosions . | . . . . Melee . | . . . . Ramming . | . . . . Kinetic 1370 | . 726 406 238 Thermal . | . . . . Explosive . | . . . . Electromagnetic . | . . . . Impact . | . . . . Slashing . | . . . . Piercing . | . . . . Highest Corruption . | . . . . Average Corruption . | . . . . Corruption Purged . | . . . . Corruption Blocked . | . . . . Overload Shots . | . . . . Overflow Damage . | . . . . Projectiles . | . . . . Explosions . | . . . . Melee . | . . . . Knockbacks . | . . . . Impact . | . . . . Kinetic . | . . . . Secondary . | . . . . Self-Inflicted Damage . | . . . . Shots . | . . . . Rammed . | . . . . Targets Rammed . | . . . . Kicked . | . . . . Crushed . | . . . . Highest Temperature 46 | . 46 . 6 Average Temperature 16 | . 16 . 5 Received Heat Transfer 396 | . 195 66 135 Siege Activations . | . . . . Martial Activations . | . . . . Shielding Activations . | . . . . Robots Disrupted . | . . . . Combat Hostiles . | . . . . Robots Corrupted . | . . . . Combat Hostiles . | . . . . Parts Fried . | . . . . Impact Corruptions . | . . . . Robots Melted . | . . . . Combat Hostiles . | . . . . Parts Melted . | . . . . Heat Transferred . | . . . . Parts Sabotaged . | . . . . Parts Stolen . | . . . . Parts Stripped . | . . . . Power Chain Reactions . | . . . . Alert | -11 -10 -10 -8 ------- Run | Yrd Mat Sub Mat Maximum Alert Level . | . . . . Low Security (%) 100 | 100 100 . 100 Level 1 . | . . . . Level 2 . | . . . . Level 3 . | . . . . Level 4 . | . . . . Level 5 . | . . . . High Security . | . . . . Max Security . | . . . . Peak Influence 161 | . 161 . 50 Initial . | . . . . Average 36 | . 41 . 24 Influence Increases 337 | . 257 . 80 Destroy 0b10 Robot/C 200 | . 160 . 40 Destroy 0b10 Robot/NC 10 | . 10 . . Destroy Leader 42 | . 32 . 10 Successful Hack 24 | . 24 . . Select Force Hacks 30 | . . . 30 Destroy Structure 1 | . 1 . . Lose Combat Pursuer 30 | . 30 . . Influence Decreases 327 | . 188 69 70 Entered New Map 34 | . . 34 . Time Decay 238 | . 188 10 40 Lost Part 55 | . . 25 30 Squads Dispatched 5 | . 1 . 4 Investigation 1 | . . . 1 Extermination . | . . . . Reinforcement 3 | . 1 . 2 Assault . | . . . . Garrison 1 | . . . 1 Intercept . | . . . . Searches Triggered . | . . . . Construction Impeded . | . . . . Haulers Reinforced . | . . . . Active Scanning Responses . | . . . . Cargo Convoy Interrupts . | . . . . Stealth | -11 -10 -10 -8 --------- Run | Yrd Mat Sub Mat Distress Signals . | . . . . Communications Jammed . | . . . . Distress Signals . | . . . . Times Spotted 30 | . 14 8 8 Peak Tracking Total 5 | . 3 3 5 Tactical Retreats 2 | . 2 . . Traps | -11 -10 -10 -8 ------- Run | Yrd Mat Sub Mat Traps Triggered . | . . . . Indirectly . | . . . . Trap Hack Attempts . | . . . . Triggered . | . . . . Disarmed . | . . . . Reprogrammed . | . . . . Reused . | . . . . Traps Extracted . | . . . . Installed . | . . . . Triggered . | . . . . Machines | -11 -10 -10 -8 ---------- Run | Yrd Mat Sub Mat Machines Disabled . | . . . . Max in Single Turn . | . . . . Machines Repaired . | . . . . Machines Dismantled . | . . . . Machines Sabotaged . | . . . . Overloaded Fab Kills . | . . . . Hacking | -11 -10 -10 -8 --------- Run | Yrd Mat Sub Mat Machines Accessed 8 | . 7 . 1 Terminals 5 | . 5 . . Fabricators . | . . . . Repair Stations . | . . . . Recycling Units 3 | . 2 . 1 Scanalyzers . | . . . . Garrison Access . | . . . . Total Hacks 17 | . 16 . 1 Successful 13 | . 12 . 1 Failed 4 | . 4 . . Catastrophic 1 | . 1 . . Database Lockouts . | . . . . Manual 13 | . 12 . 1 Terminals 14 | . 14 . . Fabricators . | . . . . Repair Stations . | . . . . Recycling Units 3 | . 2 . 1 Scanalyzers . | . . . . Garrison Access . | . . . . Terminal Hacks 1 | . 1 . . Branch Access Points 1 | . 1 . . Fabricator Hacks . | . . . . Repair Station Hacks . | . . . . Recycling Unit Hacks 2 | . 2 . . Retrieve Components 2 | . 2 . . Scanalyzer . | . . . . Garrison Access Hacks . | . . . . Unauthorized Hacks 10 | . 9 . 1 Terminals 9 | . 9 . . Assimilate 1 | . 1 . . Botnet 3 | . 3 . . Skim 5 | . 5 . . Fabricators . | . . . . Repair Stations . | . . . . Recycling Units 1 | . . . 1 Tunnel 1 | . . . 1 Scanalyzers . | . . . . Garrison Access . | . . . . Data Cores Recovered . | . . . . Used . | . . . . Hacking Detections 4 | . 4 . . Full Trace Events . | . . . . Feedback Events . | . . . . Feedback Blocked . | . . . . Robot Schematics Acquired . | . . . . Robots Built . | . . . . Authchips . | . . . . Time . | . . . . Total Robot Build Rating . | . . . . Part Schematics Acquired . | . . . . Parts Built . | . . . . Authchips . | . . . . Time . | . . . . Total Part Build Rating . | . . . . Parts Repaired . | . . . . Time . | . . . . Parts Recycled . | . . . . Recycled Matter . | . . . . Retrieved Matter . | . . . . Retrieved Components 8 | . 8 . . Parts Scanalyzed . | . . . . Part Schematics Acquired . | . . . . Parts Damaged . | . . . . Bothacking | -11 -10 -10 -8 ------------ Run | Yrd Mat Sub Mat Used RIF Installer . | . . . . Robots Hacked . | . . . . Non-combat . | . . . . Combat . | . . . . Robot Hacks Applied . | . . . . Relay Couplers Released . | . . . . Fabnet Peak Effective % . | . . . . Robots Rewired . | . . . . Allies Hacked . | . . . . Hacks Repelled . | . . . . Allies | -11 -10 -10 -8 -------- Run | Yrd Mat Sub Mat Total Allies . | . . . . Largest Group . | . . . . Highest-Rated Group . | . . . . Highest-Rated Ally . | . . . . Total Orders . | . . . . Ally Attacks . | . . . . Total Damage . | . . . . Kills . | . . . . Allies Corrupted . | . . . . Allies Melted . | . . . . Intel | -11 -10 -10 -8 ------- Run | Yrd Mat Sub Mat Active Infowar (turns) . | . . . . Robot Analysis Total . | . . . . Derelict Logs Recovered 1 | . . 1 . Drone Launches . | . . . . Drone Recoveries . | . . . . Exploration | -11 -10 -10 -8 ------------- Run | Yrd Mat Sub Mat Turns Passed 1275 | 84 825 282 84 Spaces Moved 695 | 53 353 238 51 Core 13 | 13 . . . Treads 398 | 40 353 5 . Legs . | . . . . Wheels 284 | . . 233 51 Hover . | . . . . Flight . | . . . . Fastest Speed 50 | 50 160 95 95 Average Speed 131 | 133 160 96 95 Slowest Speed 160 | 160 160 160 95 Overloaded Moves . | . . . . Propulsion Burnouts . | . . . . Robots Hopped . | . . . . Potential Cave-ins . | . . . . Cave-ins Triggered . | . . . . Exploration Rate (%) 22 | 4 62 13 9 Regions Visited 3 Branch Regions 1 Pre-discovered Areas 3 | . 1 1 1 Known Exits Taken 1 | . 1 . . Unknown Exits Taken 2 | 1 . 1 . Scrap Searched . | . . . . Spaces Dug . | . . . . Terrain Destroyed . | . . . . Melee . | . . . . Projectile . | . . . . AOE . | . . . . Terrain Rammed . | . . . . Walls Destroyed . | . . . . Machines Disabled . | . . . . Actions | -11 -10 -10 -8 --------- Run | Yrd Mat Sub Mat Total 959 | 66 560 262 71 Wait 152 | . 152 . . Move 692 | 52 352 237 51 Hop . | . . . . Pick Up 20 | 8 8 3 1 Fast Attach 4 | 2 2 . . Attach 11 | 4 2 3 2 Detach . | . . . . Swap 3 | . 2 1 . Drop 7 | . 7 . . Fire 70 | . 35 18 17 Melee . | . . . . Ram . | . . . . Kick . | . . . . Crush . | . . . . Escape Stasis . | . . . . Rewire . | . . . . Trap . | . . . . Miscellaneous . | . . . . Route ------- -11/Scrapyard -10/Materials (discovered 5 exits: *Mat x3 / Min / *Sub) -10/Subcaves -8/Materials History --------- Turn | Location | Event 7 | -11/Scrapyard | Discovered new exit (range 15) 85 | -11/Scrapyard | Entered Materials 316 | -10/Materials | Build established: Mutant 330 | -10/Materials | Identified exit to Mines 454 | -10/Materials | Discovered new exit (range 4) 644 | -10/Materials | Learned Storage stockpile data 702 | -10/Materials | Learned location of 1 exit from Storage 726 | -10/Materials | Discovered new exit (range 13) 750 | -10/Materials | Learned location of Storage (-7) 786 | -10/Materials | Identified exit to Materials 786 | -10/Materials | Identified exit to Subcaves 910 | -10/Materials | Entered Subcaves 911 | -10/Subcaves | Approached by a straggling Scientist 926 | -10/Subcaves | Ambushed by Subdweller buried in earth 927 | -10/Subcaves | Core integrity fell below 50% 951 | -10/Subcaves | Discovered new exit (range 15) 961 | -10/Subcaves | Lost 3 parts (1p1n1w) 987 | -10/Subcaves | Shifting Twisted Machinery released Sub. Power Source 987 | -10/Subcaves | Shifting Twisted Machinery released Mak. System Restoration Module 1003 | -10/Subcaves | Learned location of Zion (-7) 1085 | -10/Subcaves | A Subdweller sparked back to life 1085 | -10/Subcaves | A Subdweller sparked back to life 1085 | -10/Subcaves | A Subdweller sparked back to life 1117 | -10/Subcaves | Found Prototype Processor 1192 | -10/Subcaves | Entered Materials 1192 | -8/Materials | Evolved 4 slots: Propulsion x1, Utility x2, Weapon x1 1234 | -8/Materials | Garrison activated, responded to threat 1275 | -8/Materials | Identified Rainbow Chip 1276 | -8/Materials | Attached Rainbow Chip, gained temporary slots: Power, Propulsion, Utility, Weapon 1276 | -8/Materials | Self-destructed Last Messages --------------- 01238_ R-06 Scavenger collects Imp. Heat Sink. 01239_ R-06 Scavenger collects Aluminum Leg. 01245_ G-47 Trooper destroyed. 01245_ R-06 Scavenger collects Imp. Heat Sink. 01248_ R-06 Scavenger collects Lgt. Nuclear Core. 01250_ R-06 Scavenger collects Particle Gun. 01251_ R-06 Scavenger collects Aluminum Leg. 01253_ Ion Engine destroyed. 01255_ O-16 Technician: "IFF HANDSHAKE FAILED. SECURING TERMINAL." 01259_ ALERT: Hostiles spotted, dispatching reinforcements to Terminal M001. 01261_ Acquired 54 matter. 01268_ R-06 Scavenger destroyed. 01272_ Wheel destroyed. 01274_ Critical hit (Burn: +37). 01275_ Identified Rainbow Chip. 01276_ Core temporarily expanded with Power slot. 01276_ Core temporarily expanded with Propulsion slot. 01276_ Core temporarily expanded with Utility slot. 01276_ Core temporarily expanded with Weapon slot. Map ----- +----------------------------------------------------+ | | | | | | | ?????????????????????????????????????????????????? | | ????????????????###??????????????????????????????? | | ???????????????? ??????????????????????????????? | | ?????########??? ??????????????????????????????? | | ?????# #?""" """????????????????????????????? | | ?????# """#?""" """????????????????????????????? | | ?????# """#??"" ""?????????????????????????????? | | ?????# """#??"" ""?????????????????### ???????? | | ?????# #??? ????????????????? # ????????? | | ?????# #??? ????????????????? /?????????? | | ?????#####+######+###########?????? #?????????? | | ??????# #?????? #?????????? | | ??????# #????? #?????????? | | ??????# #????? #?????????? | | ??????####+############## #???? #?????????? | | ??????# = #?????????# #???? #?????????? | | ??????# #?????????# [!#??? #?????????? | | ??????# [ #?????????#=%!#### #?????????? | | ??????# "Y" #?????????#*= ##????????? | | ??????# """ #?????????# g / ??? | | ??????#########?????????# % ######## ""???? | | ????????????????????????# ########?????????????? | | ????????????????????????#@ #????????????????????? | | ????????????????????????# #????????????????????? | | ????????????????????????# #????????????????????? | | ????????????????????????# u#????????????????????? | | ????????????????????????# #????????????????????? | | ????????????????????????# #????????????????????? | | ????????????????????????#s r#????????????????????? | | ????????????????????????# Y #????????????????????? | | ????????????????????????# #????????????????????? | | ????????????????????????+ #????????????????????? | | ????????????????????????# ????????????????????? | | ????????????????????????# ????????????????????? | | ????????????????????????# ????????????????????? | | ????????????????????????# ????????????????????? | | ????????????????????????? ???????????????????? | | ????????????????????????? ????????????????????? | | ?????????????????????????????????????????????????? | | ?????????????????????????????????????????????????? | | ?????????????????????????????????????????????????? | | ?????????????????????????????????????????????????? | | ?????????????????????????????????????????????????? | | ?????????????????????????????????????????????????? | | ?????????????????????????????????????????????????? | | ?????????????????????????????????????????????????? | | ?????????????????????????????????????????????????? | +----------------------------------------------------+ Best States ------------- Heat Dissipation 31 Energy Generation 10 Energy Capacity 250 Matter Stores 229 Matter Capacity 300 Sight Range 16 Terrain Scan Density 10 Evasion (%) 50 Recoil Reduction 2 Offensive Hacking 10 Item Schematics ----------------- None Robot Schematics ------------------ None Fabricated ------------ Nothing Repaired ---------- Nothing Alien Tech Used ----------------- None Achievements -------------- None Challenges ------------ None Game ------ Seed SignalStructuralArray Manual? 0 Play Time 00:06:25 Cumulative 359.8 hours Start 2025.10.06 @ 11:10:00 End 2025.10.06 @ 11:16:55 Sessions 2 Manual Loads 0 Difficulty Rogue Special Mode None Game No. 473 Rogue 473 Adventurer 0 Explorer 0 Win Type - Total 11 Types 6/0/1/2/1/0/1/0/0/0 Lore% 87 Gallery% 83 Achievement% 70 Wizard Run 0 Options --------- Layout 0 ASCII 0 Keyboard 0 Movement Mouse Keybinds 0 Fullscreen 1 Font 18/X11 Map View 76x50 Zoom Use 0% Tactical HUD 1 Map Filters NONE Filters NONE Steam 1 RUN: 7ad32c1d-1ec2-4f86-8181-8339f7ed2aa3